bitfinex/quotes_SOLUSD_20241101
["timestamp","ask_amount","ask_price","bid_price","bid_amount"]
[1730478484638,27.89233055,166.12,166.06,27.89233055]
[1730478485032,27.89233055,166.11,166.06,33.91383055]
[1730478485624,33.91213055,166.12,166.06,33.91383055]
[1730478485943,6.0198,166.12,166.07,27.89233055]
[1730478486130,27.89233055,166.15,166.1,27.89233055]
[1730478486330,33.91073055,166.16,166.1,27.89233055]
[1730478486536,33.91073055,166.16,166.11,27.89233055]
[1730478486537,6.0184,166.16,166.11,27.89233055]
[1730478486732,6.0184,166.16,166.12,27.89233055]
[1730478486935,27.89233055,166.17,166.12,33.91203055]
[1730478487247,33.91023055,166.18,166.13,27.89233055]
[1730478487546,6.0179,166.18,166.13,27.89233055]
[1730478487734,27.89233055,166.15,166.1,48.96273055]
[1730478487933,27.89233055,166.17,166.11,27.89233055]
[1730478488124,27.89233055,166.17,166.12,27.89233055]
[1730478488334,33.91023055,166.18,166.12,27.89233055]
[1730478488521,33.91023055,166.18,166.13,27.89233055]
[1730478488928,33.91023055,166.18,166.12,27.89233055]
[1730478489228,33.91023055,166.18,166.1,15.0503]
[1730478489229,27.89233055,166.17,166.11,33.91203055]
[1730478489441,27.89233055,166.17,166.1,15.0503]
[1730478489442,27.89233055,166.13,166.08,6.0211]
[1730478489748,27.89233055,166.13,166.08,48.96633055]
[1730478489928,23.776884,166.12,166.07,27.89233055]
[1730478490551,27.89233055,166.14,166.09,27.89233055]
[1730478490746,27.89233055,166.21,166.13,27.89233055]
[1730478490926,51.1171,166.31,166.09,20.0]
[1730478491126,30.0715,166.27,166.1,21.0715]
[1730478491435,22.196,166.21,166.1,21.0715]
[1730478491632,22.196,166.21,166.07,6.0215]
[1730478491828,22.196,166.21,166.06,15.0545]
[1730478491829,27.89233055,166.11,166.06,15.0545]
[1730478492042,27.89233055,166.11,166.06,21.0764]
[1730478492230,27.89233055,166.11,166.06,48.96873055]
[1730478492547,27.89233055,166.14,166.08,27.89233055]
[1730478492762,23.776884,166.15,166.1,27.89233055]
[1730478493048,23.776884,166.15,166.11,33.91243055]
[1730478493425,27.89233055,166.18,166.12,27.89233055]
[1730478493625,27.89233055,166.19,166.13,27.89233055]
[1730478493826,33.90913055,166.2,166.14,27.89233055]
[1730478494246,27.89233055,166.18,166.13,27.89233055]
[1730478494650,27.89233055,166.18,166.13,33.91163055]
[1730478494831,33.90883055,166.21,166.15,27.89233055]
[1730478495031,27.89233055,166.23,166.17,27.89233055]
[1730478495238,34.20493055,166.25,166.2,27.89233055]
[1730478495425,33.90723055,166.26,166.21,27.89233055]
[1730478495625,6.0149,166.26,166.21,27.89233055]
[1730478495830,33.90613055,166.29,166.23,27.89233055]
[1730478496030,49.78853055,166.31,166.26,27.89233055]
[1730478496222,6.0128,166.31,166.26,27.89233055]
[1730478496745,33.90513055,166.31,166.25,27.89233055]
[1730478497149,28.50582605,166.32,166.26,27.89233055]
[1730478497354,27.89233055,166.3,166.25,27.89233055]
[1730478497533,27.89233055,166.27,166.22,27.89233055]
[1730478497734,27.89233055,166.26,166.2,48.95003055]
[1730478497936,27.89233055,166.26,166.21,27.89233055]
[1730478498135,27.89233055,166.27,166.22,27.89233055]
[1730478498456,27.89233055,166.28,166.23,27.89233055]
[1730478498752,23.776884,166.27,166.23,27.89233055]
[1730478499460,29.791184,166.27,166.23,27.89233055]
[1730478499661,6.0136,166.29,166.24,27.89233055]
[1730478499827,23.776884,166.28,166.25,27.89233055]
[1730478500151,27.89233055,166.31,166.25,27.89233055]
[1730478500537,27.89233055,166.3,166.25,27.89233055]
[1730478500734,27.89233055,166.31,166.25,27.89233055]
[1730478501057,27.89233055,166.3,166.25,27.89233055]
[1730478501359,27.89233055,166.3,166.24,27.89233055]
[1730478501360,23.776884,166.28,166.24,27.89233055]
[1730478501656,23.776884,166.3,166.24,27.89233055]
[1730478501657,51.66921455,166.3,166.24,27.89233055]
[1730478501853,23.776884,166.3,166.25,27.89233055]
[1730478502237,51.66921455,166.3,166.25,27.89233055]
[1730478503063,57.68271455,166.3,166.24,33.90763055]
[1730478503858,27.89233055,166.27,166.23,15.0394]
[1730478504066,27.89233055,166.26,166.23,15.0394]
[1730478504730,27.89233055,166.26,166.21,33.90873055]
[1730478505349,27.89233055,166.26,166.21,27.89233055]
[1730478505558,33.90723055,166.26,166.21,27.89233055]
[1730478506360,6.0149,166.26,166.21,27.89233055]
[1730478506551,6.0149,166.26,166.21,33.90873055]
[1730478507064,6.0149,166.26,166.22,27.89233055]
[1730478507767,23.776884,166.27,166.23,27.89233055]
[1730478507950,51.66921455,166.27,166.21,27.89233055]
[1730478508151,27.89233055,166.26,166.2,33.90903055]
[1730478508342,23.776884,166.25,166.21,27.89233055]
[1730478508966,23.776884,166.26,166.21,27.89233055]
[1730478509758,6.0146,166.27,166.25,27.89233055]
[1730478509960,23.776884,166.28,166.25,27.89233055]
[1730478510150,6.014,166.28,166.24,27.89233055]
[1730478510672,29.790384,166.29,166.24,27.89233055]
[1730478510841,57.68271455,166.29,166.24,27.89233055]
[1730478511165,33.90583055,166.29,166.24,27.89233055]
[1730478511367,6.0135,166.29,166.24,27.89233055]
[1730478511735,6.0135,166.29,166.25,6.015]
[1730478512154,27.89233055,166.31,166.25,33.90733055]
[1730478512354,33.90543055,166.31,166.25,33.90733055]
[1730478512747,23.776884,166.3,166.26,27.89233055]
[1730478513158,28.50582605,166.32,166.27,27.89233055]
[1730478513457,28.50582605,166.32,166.25,21.0525]
[1730478513458,0.6134955,166.32,166.31,27.89233055]
[1730478513661,0.6134955,166.32,166.29,27.89233055]
[1730478513965,0.6134955,166.32,166.31,27.89233055]
[1730478515059,0.6134955,166.32,166.31,48.01782055]
[1730478515369,27.89233055,166.46,166.33,20.0]
[1730478515572,6.007,166.47,166.33,20.0]
[1730478515573,33.89933055,166.47,166.42,27.89233055]
[1730478516062,33.89943055,166.47,166.42,33.90113055]
[1730478516278,34.51252605,166.48,166.43,27.89233055]
[1730478516560,34.51252605,166.48,166.44,27.89233055]
[1730478516561,0.6134955,166.48,166.44,27.89233055]
[1730478516949,0.6134955,166.48,166.45,27.89233055]
[1730478517443,0.6134955,166.48,166.46,27.89233055]
[1730478517645,0.6134955,166.48,166.47,27.89233055]
[1730478517870,0.6134955,166.48,166.47,81.7916611]
[1730478518081,15.8885,166.59,166.47,81.7916611]
[1730478518082,21.8914,166.59,166.47,82.99241726]
[1730478518365,27.89233055,166.6,166.55,27.89233055]
[1730478518546,33.89453055,166.61,166.56,27.89233055]
[1730478518747,6.0022,166.61,166.57,27.89233055]
[1730478519051,6.0022,166.61,166.56,27.89233055]
[1730478519052,33.89453055,166.61,166.56,27.89233055]
[1730478519441,27.89233055,166.6,166.55,27.89233055]
[1730478519750,27.89233055,166.56,166.51,27.89233055]
[1730478520272,27.89233055,166.55,166.49,27.89233055]
[1730478520443,27.89233055,166.54,166.48,27.89233055]
[1730478520650,27.89233055,166.52,166.47,27.89233055]
[1730478520850,27.89233055,166.52,166.43,21.0289]
[1730478520851,27.89233055,166.52,166.46,27.89233055]
[1730478521053,23.776884,166.51,166.46,27.89233055]
[1730478521273,27.89233055,166.49,166.44,27.89233055]
[1730478521570,57.67621455,166.48,166.43,27.89233055]
[1730478521743,27.89233055,166.51,166.45,27.89233055]
[1730478521946,27.89233055,166.49,166.44,27.89233055]
[1730478522165,51.66921455,166.48,166.43,27.89233055]
[1730478522368,51.66921455,166.48,166.42,27.89233055]
[1730478522857,27.89233055,166.49,166.44,27.89233055]
[1730478523061,27.89233055,166.5,166.44,27.89233055]
[1730478523252,23.776884,166.49,166.44,27.89233055]
[1730478523761,27.89233055,166.48,166.43,27.89233055]
[1730478524068,27.89233055,166.45,166.4,27.89233055]
[1730478524270,27.89233055,166.46,166.41,27.89233055]
[1730478524488,23.776884,166.46,166.41,27.89233055]
[1730478524657,23.776884,166.46,166.42,27.89233055]
[1730478524853,27.89233055,166.5,166.45,27.89233055]
[1730478525166,23.776884,166.49,166.46,27.89233055]
[1730478525369,23.776884,166.49,166.45,27.89233055]
[1730478525554,51.66921455,166.49,166.44,27.89233055]
[1730478526687,23.776884,166.49,166.45,27.89233055]
[1730478526875,29.783584,166.49,166.45,27.89233055]
[1730478527374,57.67591455,166.49,166.44,27.89233055]
[1730478527972,57.67591455,166.49,166.42,6.0086]
[1730478527973,57.67591455,166.49,166.43,27.89233055]
[1730478528162,29.783584,166.49,166.44,27.89233055]
[1730478528366,6.0067,166.49,166.45,27.89233055]
[1730478528668,6.0067,166.49,166.39,27.89233055]
[1730478528669,27.89233055,166.46,166.39,27.89233055]
[1730478528872,27.89233055,166.45,166.39,27.89233055]
[1730478529373,27.89233055,166.41,166.36,27.89233055]
[1730478529959,27.89233055,166.42,166.37,27.89233055]
[1730478530372,33.90153055,166.41,166.36,27.89233055]
[1730478530954,6.0092,166.41,166.37,27.89233055]
[1730478531162,6.0092,166.41,166.33,27.89233055]
[1730478531163,27.89233055,166.38,166.33,27.89233055]
[1730478531360,27.89233055,166.37,166.32,27.89233055]
[1730478531679,27.89233055,166.36,166.31,33.90513055]
[1730478531854,27.89233055,166.37,166.32,27.89233055]
[1730478532056,23.776884,166.38,166.34,27.89233055]
[1730478532265,57.67981455,166.38,166.32,27.89233055]
[1730478533057,33.90223055,166.4,166.35,27.89233055]
[1730478533273,23.776884,166.39,166.34,27.89233055]
[1730478535281,6.0103,166.38,166.33,27.89233055]
[1730478535459,23.776884,166.4,166.37,27.89233055]
[1730478535665,23.776884,166.4,166.36,27.89233055]
[1730478535882,27.89233055,166.39,166.34,27.89233055]
[1730478536090,27.89233055,166.38,166.33,27.89233055]
[1730478536882,27.89233055,166.39,166.33,27.89233055]
[1730478537177,27.89233055,166.39,166.29,36.0814]
[1730478537178,27.89233055,166.39,166.34,27.89233055]
[1730478537379,27.89233055,166.36,166.3,27.89233055]
[1730478537574,27.89233055,166.34,166.29,27.89233055]
[1730478537982,27.89233055,166.35,166.29,27.89233055]
[1730478538373,23.776884,166.34,166.3,27.89233055]
[1730478538687,29.788684,166.34,166.31,27.89233055]
[1730478539687,23.776884,166.37,166.32,27.89233055]
[1730478540081,33.90223055,166.39,166.34,27.89233055]
[1730478540270,23.776884,166.38,166.34,27.89233055]
[1730478540595,33.90273055,166.38,166.33,6.0121]
[1730478540792,27.89233055,166.37,166.33,6.0121]
[1730478541575,27.89233055,166.36,166.31,48.93633055]
[1730478541767,27.89233055,166.35,166.31,15.0313]
[1730478541967,27.89233055,166.34,166.28,48.94103055]
[1730478542166,27.89233055,166.32,166.28,15.0348]
[1730478542472,27.89233055,166.31,166.26,33.90693055]
[1730478542677,33.90533055,166.31,166.26,33.90693055]
[1730478542870,51.66921455,166.3,166.24,42.92993055]
[1730478543086,27.89233055,166.26,166.21,42.93343055]
[1730478543265,27.89233055,166.25,166.21,15.0411]
[1730478543779,27.89233055,166.26,166.21,15.0411]
[1730478544180,33.90723055,166.26,166.21,15.0411]
[1730478544495,33.90723055,166.26,166.21,48.94983055]
[1730478544685,33.90643055,166.28,166.23,27.89233055]
[1730478544889,23.776884,166.27,166.23,27.89233055]
[1730478545088,51.66921455,166.27,166.22,27.89233055]
[1730478546514,57.68361455,166.27,166.22,27.89233055]
[1730478546990,30.0516,166.38,166.25,27.89233055]
[1730478546991,23.776884,166.28,166.25,27.89233055]
[1730478547397,27.89233055,166.31,166.25,27.89233055]
[1730478547599,27.89233055,166.32,166.27,27.89233055]
[1730478547912,27.89233055,166.31,166.25,27.89233055]
[1730478548280,33.90583055,166.29,166.24,27.89233055]
[1730478548685,6.0135,166.29,166.25,27.89233055]
[1730478549094,27.89233055,166.32,166.27,27.89233055]
[1730478549295,27.89233055,166.32,166.26,27.89233055]
[1730478549600,20.0,166.26,166.19,48.95173055]
[1730478549903,20.0,166.26,166.13,16.2135]
[1730478549904,27.89233055,166.22,166.17,27.89233055]
[1730478550508,27.89233055,166.21,166.16,48.95573055]
[1730478550812,27.89233055,166.21,166.16,27.89233055]
[1730478550976,27.89233055,166.21,166.11,6.1731]
[1730478550977,23.776884,166.21,166.17,27.89233055]
[1730478552309,33.90773055,166.24,166.18,27.89233055]
[1730478552601,33.90663055,166.27,166.21,27.89233055]
[1730478552804,33.90623055,166.28,166.23,27.89233055]
[1730478552981,33.90603055,166.29,166.24,27.89233055]
[1730478553177,27.89233055,166.3,166.25,27.89233055]
[1730478553408,27.89233055,166.29,166.24,27.89233055]
[1730478553601,27.89233055,166.28,166.23,27.89233055]
[1730478553780,27.89233055,166.24,166.19,27.89233055]
[1730478553977,27.89233055,166.23,166.17,27.89233055]
[1730478554180,27.89233055,166.21,166.16,27.89233055]
[1730478554490,27.89233055,166.21,166.16,33.91043055]
[1730478555302,27.89233055,166.25,166.2,27.89233055]
[1730478555484,27.89233055,166.24,166.18,27.89233055]
[1730478555888,27.89233055,166.24,166.19,27.89233055]
[1730478556387,27.89233055,166.25,166.2,27.89233055]
[1730478556585,27.89233055,166.26,166.21,27.89233055]
[1730478556787,27.89233055,166.25,166.2,27.89233055]
[1730478557298,6.0132,166.3,166.23,27.89233055]
[1730478557299,27.89233055,166.28,166.23,27.89233055]
[1730478557598,27.89233055,166.29,166.24,27.89233055]
[1730478557798,27.89233055,166.29,166.2,6.1363]
[1730478557799,27.89233055,166.29,166.23,27.89233055]
[1730478558187,27.89233055,166.31,166.26,27.89233055]
[1730478558383,33.90513055,166.32,166.26,33.90663055]
[1730478558793,27.89233055,166.31,166.26,33.90663055]
[1730478559296,27.89233055,166.31,166.26,6.0143]
[1730478559898,27.89233055,166.29,166.26,21.0509]
[1730478560093,27.89233055,166.27,166.22,15.0394]
[1730478560497,27.89233055,166.28,166.22,42.93173055]
[1730478561007,27.89233055,166.27,166.22,42.93173055]
[1730478561305,27.89233055,166.27,166.22,15.0394]
[1730478561516,27.89233055,166.25,166.22,15.0394]
[1730478561685,27.89233055,166.25,166.2,6.1363]
[1730478561888,27.89233055,166.25,166.19,36.1029]
[1730478561889,27.89233055,166.22,166.18,15.0433]
[1730478562100,27.89233055,166.22,166.18,21.0608]
[1730478562303,27.89233055,166.21,166.16,6.0181]
[1730478562692,27.89233055,166.21,166.16,27.89233055]
[1730478563390,33.90863055,166.22,166.16,27.89233055]
[1730478563692,27.89233055,166.29,166.21,27.89233055]
[1730478563901,27.89233055,166.3,166.24,27.89233055]
[1730478564194,27.89233055,166.29,166.23,27.89233055]
[1730478564401,27.89233055,166.3,166.24,27.89233055]
[1730478564704,43.94583055,166.34,166.28,33.90623055]
[1730478564892,27.89233055,166.34,166.28,33.90623055]
[1730478565089,27.89233055,166.34,166.28,48.94103055]
[1730478565791,27.89233055,166.33,166.28,48.94103055]
[1730478566290,27.89233055,166.32,166.28,21.0487]
[1730478566489,27.89233055,166.33,166.28,21.0487]
[1730478567110,27.89233055,166.36,166.3,27.89233055]
[1730478567409,27.89233055,166.35,166.3,27.89233055]
[1730478567707,27.89233055,166.36,166.31,27.89233055]
[1730478568203,27.89233055,166.36,166.28,21.0487]
[1730478568204,27.89233055,166.35,166.3,27.89233055]
[1730478568407,27.89233055,166.35,166.28,21.0487]
[1730478568408,27.89233055,166.33,166.28,21.0487]
[1730478568610,27.89233055,166.35,166.3,27.89233055]
[1730478568904,23.776884,166.36,166.31,27.89233055]
[1730478569098,27.89233055,166.38,166.32,27.89233055]
[1730478569404,44.24613055,166.39,166.33,27.89233055]
[1730478569605,27.89233055,166.39,166.34,27.89233055]
[1730478569786,27.89233055,166.38,166.33,27.89233055]
[1730478569991,27.89233055,166.38,166.32,27.89233055]
[1730478570189,27.89233055,166.38,166.33,27.89233055]
[1730478570493,47.89233055,166.39,166.33,27.89233055]
[1730478570796,27.89233055,166.37,166.32,27.89233055]
[1730478571307,27.89233055,166.38,166.32,27.89233055]
[1730478571511,57.67981455,166.38,166.32,33.90463055]
[1730478571998,57.67981455,166.38,166.33,27.89233055]
[1730478573515,57.67981455,166.38,166.33,33.90433055]
[1730478574113,27.89233055,166.37,166.33,6.012]
[1730478574493,57.67981455,166.38,166.33,27.89233055]
[1730478574809,27.89233055,166.37,166.32,27.89233055]
[1730478574996,57.67981455,166.38,166.33,27.89233055]
[1730478575197,27.89233055,166.37,166.32,27.89233055]
[1730478575402,57.67981455,166.38,166.32,27.89233055]
[1730478575618,57.67981455,166.38,166.28,20.0]
[1730478575619,27.89233055,166.39,166.34,27.89233055]
[1730478575793,23.776884,166.39,166.35,27.89233055]
[1730478575993,51.66921455,166.39,166.34,27.89233055]
[1730478576195,30.6145,166.43,166.28,20.0]
[1730478576196,33.90063055,166.44,166.38,27.89233055]
[1730478576395,6.0083,166.44,166.4,27.89233055]
[1730478576808,6.5269,166.46,166.37,15.0259]
[1730478576809,12.5344,166.46,166.41,27.89233055]
[1730478577101,6.0075,166.46,166.42,27.89233055]
[1730478577707,33.89983055,166.46,166.41,27.89233055]
[1730478578919,27.89233055,166.46,166.41,27.89233055]
[1730478579100,6.0069,166.48,166.43,27.89233055]
[1730478579301,6.0069,166.48,166.44,27.89233055]
[1730478579603,6.0069,166.48,166.45,27.89233055]
[1730478579795,6.0069,166.48,166.44,27.89233055]
[1730478581103,23.776884,166.47,166.42,27.89233055]
[1730478581415,27.89233055,166.46,166.41,27.89233055]
[1730478581606,23.776884,166.47,166.42,27.89233055]
[1730478581802,51.66921455,166.47,166.41,27.89233055]
[1730478582319,51.66921455,166.47,166.37,27.89233055]
[1730478582320,27.89233055,166.42,166.37,27.89233055]
[1730478582518,27.89233055,166.42,166.36,27.89233055]
[1730478582728,27.89233055,166.48,166.41,27.89233055]
[1730478582901,33.89863055,166.49,166.43,27.89233055]
[1730478583313,27.89233055,166.48,166.43,27.89233055]
[1730478583512,27.89233055,166.48,166.42,27.89233055]
[1730478584112,27.89233055,166.48,166.43,27.89233055]
[1730478584294,6.0063,166.49,166.43,27.89233055]
[1730478584295,33.89863055,166.49,166.43,33.90063055]
[1730478584499,33.89863055,166.49,166.44,27.89233055]
[1730478585630,6.0063,166.49,166.44,33.90043055]
[1730478585801,27.89233055,166.48,166.43,21.0296]
[1730478586222,27.89233055,166.47,166.42,27.89233055]
[1730478586423,27.89233055,166.47,166.42,33.90113055]
[1730478586919,51.66921455,166.48,166.42,33.90113055]
[1730478587805,27.89233055,166.47,166.42,33.90113055]
[1730478588010,33.89933055,166.47,166.42,33.90113055]
[1730478588220,27.89233055,166.45,166.39,27.89233055]
[1730478588411,27.89233055,166.44,166.38,27.89233055]
[1730478588813,27.89233055,166.42,166.37,15.0267]
[1730478589007,27.89233055,166.43,166.37,48.92963055]
[1730478589230,27.89233055,166.44,166.39,27.89233055]
[1730478589535,27.89233055,166.45,166.4,27.89233055]
[1730478590024,27.89233055,166.48,166.43,27.89233055]
[1730478590524,27.89233055,166.48,166.42,27.89233055]
[1730478590825,27.89233055,166.47,166.42,27.89233055]
[1730478591026,6.0063,166.49,166.4,15.0238]
[1730478591027,27.89233055,166.46,166.4,42.91613055]
[1730478592222,27.89233055,166.43,166.38,27.89233055]
[1730478592408,23.776884,166.45,166.37,27.89233055]
[1730478592409,27.89233055,166.42,166.37,27.89233055]
[1730478592924,27.89233055,166.44,166.38,27.89233055]
[1730478593226,27.89233055,166.44,166.39,27.89233055]
[1730478593435,51.66921455,166.45,166.39,27.89233055]
[1730478593605,27.89233055,166.48,166.42,27.89233055]
[1730478593806,27.89233055,166.45,166.39,27.89233055]
[1730478595332,27.89233055,166.48,166.42,27.89233055]
[1730478595530,27.89233055,166.51,166.46,27.89233055]
[1730478595717,27.89233055,166.52,166.47,27.89233055]
[1730478595907,6.0049,166.53,166.46,27.89233055]
[1730478595908,27.89233055,166.51,166.46,27.89233055]
[1730478596107,27.89233055,166.5,166.45,27.89233055]
[1730478596713,27.89233055,166.51,166.45,27.89233055]
[1730478597102,27.89233055,166.51,166.46,27.89233055]
[1730478597522,6.006,166.5,166.46,27.89233055]
[1730478597723,27.89233055,166.51,166.46,27.89233055]
[1730478597935,6.0057,166.51,166.47,27.89233055]
[1730478598310,6.0057,166.51,166.46,33.89963055]
[1730478599334,6.0057,166.51,166.46,27.89233055]
[1730478600220,30.7026,166.54,166.48,27.89233055]
[1730478600221,6.0049,166.53,166.48,27.89233055]
[1730478600423,27.89233055,166.57,166.52,27.89233055]
[1730478600730,15.0065,166.59,166.5,27.89233055]
[1730478600731,27.89233055,166.56,166.5,27.89233055]
[1730478600913,27.89233055,166.55,166.49,27.89233055]
[1730478601114,6.0031,166.58,166.46,23.776884]
[1730478601312,21.0085,166.6,166.47,71.0601]
[1730478601532,6.0024,166.6,166.55,27.89233055]
[1730478601741,33.89473055,166.6,166.54,27.89233055]
[1730478601935,27.89233055,166.55,166.45,27.89233055]
[1730478602125,27.89233055,166.51,166.45,33.89993055]
[1730478602327,21.0084,166.6,166.45,33.89993055]
[1730478602328,27.89233055,166.52,166.46,27.89233055]
[1730478602521,27.89233055,166.53,166.48,27.89233055]
[1730478602843,21.0084,166.6,166.49,27.89233055]
[1730478602844,27.89233055,166.55,166.49,27.89233055]
[1730478603140,27.89233055,166.57,166.52,27.89233055]
[1730478603337,27.89233055,166.6,166.54,27.89233055]
[1730478603538,21.0048,166.63,166.56,27.89233055]
[1730478603539,27.89233055,166.62,166.56,27.89233055]
[1730478603743,33.89333055,166.64,166.54,15.2972]
[1730478604039,0.6134955,166.65,166.54,15.2972]
[1730478604247,27.89233055,166.63,166.54,15.2972]
[1730478604836,27.89233055,166.63,166.58,27.89233055]
[1730478605022,27.89233055,166.64,166.58,27.89233055]
[1730478605225,27.89233055,166.64,166.54,15.2972]
[1730478605226,27.89233055,166.6,166.55,33.89653055]
[1730478605532,27.89233055,166.59,166.54,15.0111]
[1730478605735,27.89233055,166.6,166.54,42.90343055]
[1730478605931,23.776884,166.63,166.54,42.90343055]
[1730478605932,27.89233055,166.62,166.56,27.89233055]
[1730478606324,27.89233055,166.59,166.54,48.90793055]
[1730478606638,27.89233055,166.61,166.55,27.89233055]
[1730478606836,27.89233055,166.6,166.55,27.89233055]
[1730478607038,27.89233055,166.57,166.52,33.89733055]
[1730478607419,27.89233055,166.56,166.51,27.89233055]
[1730478607754,27.89233055,166.57,166.51,27.89233055]
[1730478607916,33.89543055,166.58,166.52,27.89233055]
[1730478608116,27.89233055,166.54,166.48,27.89233055]
[1730478608317,27.89233055,166.52,166.47,42.90983055]
[1730478608517,27.89233055,166.49,166.44,27.89233055]
[1730478608937,27.89233055,166.51,166.45,27.89233055]
[1730478609141,27.89233055,166.54,166.49,27.89233055]
[1730478609331,27.89233055,166.55,166.49,27.89233055]
[1730478609529,33.89613055,166.56,166.51,27.89233055]
[1730478609841,27.89233055,166.56,166.5,27.89233055]
[1730478610314,27.89233055,166.55,166.5,27.89233055]
[1730478610618,29.780284,166.57,166.47,27.89233055]
[1730478610824,27.89233055,166.53,166.47,27.89233055]
[1730478611132,27.89233055,166.52,166.47,27.89233055]
[1730478611334,27.89233055,166.51,166.45,27.89233055]
[1730478611631,27.89233055,166.49,166.44,27.89233055]
[1730478611831,27.89233055,166.49,166.43,27.89233055]
[1730478612028,27.89233055,166.5,166.45,27.89233055]
[1730478612352,27.89233055,166.53,166.48,27.89233055]
[1730478612529,27.89233055,166.49,166.43,27.89233055]
[1730478612842,27.89233055,166.47,166.42,21.031]
[1730478613221,27.89233055,166.49,166.43,27.89233055]
[1730478613422,27.89233055,166.51,166.45,27.89233055]
[1730478613739,27.89233055,166.52,166.46,48.91833055]
[1730478613949,27.89233055,166.52,166.47,27.89233055]
[1730478614253,6.0042,166.55,166.46,21.026]
[1730478614254,27.89233055,166.5,166.46,21.026]
[1730478614420,6.0042,166.55,166.43,27.89233055]
[1730478614622,27.89233055,166.48,166.43,48.92213055]
[1730478614814,23.776884,166.54,166.4,6.546]
[1730478615014,23.776884,166.52,166.41,21.0323]
[1730478615822,27.89233055,166.46,166.41,48.92463055]
[1730478616233,27.89233055,166.47,166.41,48.92463055]
[1730478616541,27.89233055,166.46,166.41,48.92463055]
[1730478616720,27.89233055,166.47,166.41,48.92463055]
[1730478617233,27.89233055,166.46,166.41,21.0323]
[1730478617941,51.66921455,166.48,166.42,27.89233055]
[1730478618335,27.89233055,166.46,166.41,15.0231]
[1730478618629,57.67621455,166.48,166.42,27.89233055]
[1730478619032,27.89233055,166.46,166.41,48.92463055]
[1730478619234,27.89233055,166.47,166.41,48.92463055]
[1730478619548,27.89233055,166.47,166.42,27.89233055]
[1730478620141,27.89233055,166.46,166.42,6.0085]
[1730478620516,27.89233055,166.47,166.42,6.0085]
[1730478620941,27.89233055,166.46,166.42,6.0085]
[1730478621154,27.89233055,166.43,166.29,15.4258]
[1730478621320,27.89233055,166.38,166.34,6.0116]
[1730478621721,27.89233055,166.38,166.33,40.21154486]
[1730478621923,27.89233055,166.35,166.33,6.25871431]
[1730478622145,33.90353055,166.36,166.31,48.93693055]
[1730478622442,27.89233055,166.36,166.31,48.93693055]
[1730478622941,27.89233055,166.36,166.31,21.0446]
[1730478623348,27.89233055,166.32,166.29,6.0135]
[1730478623644,27.89233055,166.33,166.28,48.94103055]
[1730478624427,27.89233055,166.32,166.28,15.0348]
[1730478624634,27.89233055,166.3,166.25,21.0524]
[1730478624835,27.89233055,166.31,166.26,27.89233055]
[1730478625039,27.89233055,166.33,166.27,27.89233055]
[1730478625445,27.89233055,166.3,166.25,48.94473055]
[1730478625658,27.89233055,166.29,166.25,21.0524]
[1730478625823,23.776884,166.36,166.18,1.04552906]
[1730478625824,27.89233055,166.27,166.18,1.04552906]
[1730478626030,27.89233055,166.27,166.21,42.93293055]
[1730478626330,23.776884,166.31,166.24,27.89233055]
[1730478626643,23.776884,166.31,166.2,21.0589]
[1730478626644,27.89233055,166.27,166.2,21.0589]
[1730478626844,29.789784,166.31,166.2,21.0589]
[1730478627025,27.89233055,166.26,166.21,27.89233055]
[1730478627223,27.89233055,166.3,166.24,27.89233055]
[1730478627443,27.89233055,166.29,166.23,27.89233055]
[1730478627634,27.89233055,166.27,166.21,27.89233055]
[1730478627839,27.89233055,166.27,166.22,27.89233055]
[1730478628028,51.66921455,166.31,166.25,27.89233055]
[1730478628632,27.89233055,166.31,166.26,21.0512]
[1730478628846,27.89233055,166.31,166.26,48.94353055]
[1730478629043,27.89233055,166.28,166.22,27.89233055]
[1730478629246,27.89233055,166.28,166.2,30.0842]
[1730478629247,27.89233055,166.25,166.23,15.0393]
[1730478629449,27.89233055,166.32,166.21,6.0164]
[1730478629450,27.89233055,166.24,166.21,6.0164]
[1730478629752,27.89233055,166.25,166.21,6.0164]
[1730478629929,27.89233055,166.25,166.21,21.0576]
[1730478631141,27.89233055,166.28,166.22,27.89233055]
[1730478631342,27.89233055,166.28,166.23,27.89233055]
[1730478631545,27.89233055,166.29,166.24,27.89233055]
[1730478631841,27.89233055,166.3,166.25,27.89233055]
[1730478632152,22.4929,166.3,166.16,6.26242345]
[1730478632377,23.56842659,166.29,166.13,24.071899]
[1730478632656,22.4929,166.29,166.13,21.0676]
[1730478633245,22.4929,166.29,166.15,27.89233055]
[1730478633246,27.89233055,166.21,166.15,27.89233055]
[1730478634038,27.89233055,166.2,166.15,27.89233055]
[1730478634560,27.89233055,166.22,166.17,27.89233055]
[1730478634849,27.89233055,166.2,166.14,27.89233055]
[1730478635054,27.89233055,166.21,166.15,27.89233055]
[1730478635254,27.89233055,166.21,166.16,21.0639]
[1730478635562,27.89233055,166.2,166.16,21.0639]